fUST/lending_fUST_20240713
["ID","MTS","AMOUNT","RATE_DAILY","PERIOD"]
[331916918,1720839043581,-500.0,0.00024931,2]
[331916919,1720839043590,-755.94,0.00024931,2]
[331916920,1720839043599,-507.54472973,0.00024931,2]
[331916921,1720839043608,-500.0,0.00024931,2]
[331916922,1720839043618,-500.0,0.00024931,2]
[331916923,1720839043627,-541.61,0.00024931,2]
[331916924,1720839043637,-500.0,0.00024931,2]
[331916925,1720839043646,-500.0,0.00024931,2]
[331916926,1720839043655,-500.0,0.00024931,2]
[331916927,1720839043665,-486.86017583,0.00024931,2]
[331916928,1720839043675,-500.0,0.00024931,2]
[331916929,1720839043684,-500.0,0.00024931,2]
[331916930,1720839043694,-500.0,0.00024931,2]
[331916931,1720839043703,-500.0,0.00024931,2]
[331916932,1720839043713,-500.0,0.00024931,2]
[331916933,1720839043723,-500.0,0.00024931,2]
[331916934,1720839043733,-500.0,0.00024931,2]
[331916935,1720839043742,-500.0,0.00024931,2]
[331916936,1720839043753,-500.0,0.00024931,2]
[331916937,1720839043762,-500.0,0.00024931,2]
[331916938,1720839043771,-1351.27,0.00024931,2]
[331916939,1720839043782,-500.0,0.00024931,2]
[331916940,1720839043792,-508.37111706,0.00024931,2]
[331916941,1720839043803,-550.12,0.00024931,2]
[331916942,1720839043813,-500.0,0.00024931,2]
[331916943,1720839043822,-479.0,0.00024931,2]
[331916944,1720839043832,-500.0,0.00024931,2]
[331916945,1720839043843,-500.0,0.00024931,2]
[331916946,1720839043854,-500.0,0.00024931,2]
[331916947,1720839043863,-505.4395133,0.00024931,2]
[331916948,1720839043874,-500.0,0.00024931,2]
[331916949,1720839043884,-500.0,0.00024931,2]
[331916950,1720839043893,-500.0,0.00024931,2]
[331916951,1720839043903,-500.0,0.00024931,2]
[331916952,1720839043913,-500.0,0.00024931,2]
[331916953,1720839043924,-599.65511533,0.00024931,2]
[331916954,1720839043935,-502.78812318,0.00024931,2]
[331916955,1720839043945,-500.0,0.00024931,2]
[331916956,1720839043955,-500.0,0.00024931,2]
[331916957,1720839043969,-18599.28,0.00024931,2]
[331916958,1720839043981,-515.50934712,0.00024931,2]
[331916959,1720839043992,-500.0,0.00024931,2]
[331916960,1720839044003,-510.4355411,0.00024931,2]
[331916961,1720839044014,-500.0,0.00024931,2]
[331916962,1720839044026,-500.0,0.00024931,2]
[331916963,1720839044038,-2058.93,0.00024931,2]
[331916964,1720839044049,-500.0,0.00024931,2]
[331916965,1720839044059,-500.0,0.00024931,2]
[331916966,1720839044068,-500.0,0.00024931,2]
[331916967,1720839044078,-500.0,0.00024931,2]
[331916968,1720839044087,-500.0,0.00024931,2]
[331916969,1720839044099,-231.67405331,0.00024931,2]
[331916970,1720839044109,-1158.99,0.00024931,2]
[331916971,1720839044121,-644.4,0.00024931,2]
[331916972,1720839044132,-500.0,0.00024931,2]
[331916973,1720839044143,-575.43587063,0.00024931,2]
[331916974,1720839044152,-500.0,0.00024931,2]
[331916975,1720839044162,-500.0,0.00024931,2]
[331916976,1720839044172,-159.99140286,0.00024931,2]
[331916977,1720839044184,-507.81145179,0.00024931,2]
[331916978,1720839044194,-500.0,0.00024931,2]
[331916979,1720839044204,-507.50561512,0.00024931,2]
[331916980,1720839044214,-500.0,0.00024931,2]
[331916981,1720839044224,-894.15,0.00024931,2]
[331916982,1720839044235,-504.79779011,0.00024931,2]
[331916983,1720839044246,-501.36975689,0.00024931,2]
[331916984,1720839044257,-500.0,0.00024931,2]
[331916985,1720839044267,-500.0,0.00024931,2]
[331916986,1720839044279,-500.0,0.00024931,2]
[331916987,1720839044290,-500.0,0.00024931,2]
[331916988,1720839044300,-508.66457164,0.00024931,2]
[331916989,1720839044309,-267.1765909,0.00024931,2]
[331916990,1720839044319,-987.61862714,0.00024968,2]
[331916991,1720839044329,-3289.69400074,0.0002499,3]
[331916992,1720839044339,-500.0,0.00024999,2]
[331916993,1720839044349,-500.0,0.00024999,2]
[331916994,1720839044359,-422.29022427,0.00025,2]
[331916995,1720839044369,-154.8086033,0.00025,2]
[331916996,1720839044379,-229.31956132,0.00025,2]
[331916997,1720839044389,-26481.24331539,0.00025,2]
[331916998,1720839044399,-22183.87414748,0.00025,2]
[331916999,1720839044409,-190.83926984,0.00025,2]
[331917000,1720839044419,-987.61862714,0.00025174,2]
[331917001,1720839044429,-3289.69400074,0.00025195,3]
[331917002,1720839044439,-500.0,0.00025204,2]
[331917003,1720839044449,-154.75283804,0.00025204,2]
[331917004,1720839044459,-500.0,0.00025205,2]
[331917005,1720839044469,-508.52880112,0.00025205,2]
[331917006,1720839044479,-507.56190565,0.00025205,2]
[331917007,1720839044489,-500.0,0.00025205,2]
[331917008,1720839044498,-500.0,0.00025205,2]
[331917009,1720839044508,-500.0,0.00025205,2]
[331917010,1720839044517,-500.0,0.00025205,2]
[331917011,1720839044527,-500.0,0.00025205,2]
[331917012,1720839044537,-507.40587433,0.00025205,2]
[331917013,1720839044546,-500.0,0.00025205,2]
[331917014,1720839044556,-232.80833737,0.00025205,2]
[331917015,1720839044566,-500.0,0.00025205,2]
[331917016,1720839044577,-490.42301557,0.00025205,2]
[331917017,1720839044589,-500.0,0.00025205,2]
[331917018,1720839044600,-500.0,0.00025205,2]
[331917019,1720839044610,-500.0,0.00025205,2]
[331917021,1720839044620,-500.0,0.00025205,2]
[331917023,1720839044629,-500.0,0.00025205,2]
[331917024,1720839044640,-500.0,0.00025205,2]
[331917025,1720839044651,-597.13599854,0.00025205,2]
[331917026,1720839044660,-500.0,0.00025205,2]
[331917027,1720839044671,-500.0,0.00025205,2]
[331917028,1720839044681,-300.03960064,0.00025205,2]
[331917029,1720839044690,-220.06344593,0.00025205,2]
[331917030,1720839044700,-500.0,0.00025205,2]
[331917031,1720839044709,-150.59343618,0.00025205,2]
[331917032,1720839044720,-500.0,0.00025205,2]
[331917033,1720839044730,-500.0,0.00025205,2]
[331917034,1720839044739,-518.66612669,0.00025205,2]
[331917035,1720839044749,-500.0,0.00025205,2]
[331917036,1720839044759,-515.93,0.00025205,2]
[331917037,1720839044768,-500.0,0.00025205,2]
[331917038,1720839044778,-522.25059948,0.00025205,2]
[331917039,1720839044787,-506.78422867,0.00025205,2]
[331917040,1720839044798,-500.0,0.00025205,2]
[331917041,1720839044807,-576.49751016,0.00025205,2]
[331917042,1720839044817,-500.0,0.00025205,2]
[331917043,1720839044827,-500.0,0.00025205,2]
[331917044,1720839044836,-755.94,0.00025205,2]
[331917045,1720839044846,-500.0,0.00025205,2]
[331917046,1720839044856,-500.0,0.00025205,2]
[331917047,1720839044865,-541.61,0.00025205,2]
[331917049,1720839044875,-563.41442449,0.00025205,2]
[331917051,1720839044884,-508.92620805,0.00025205,2]
[331917052,1720839044894,-501.52635374,0.00025205,2]
[331917053,1720839044906,-500.0,0.00025205,2]
[331917054,1720839044916,-500.0,0.00025205,2]
[331917055,1720839044925,-500.0,0.00025205,2]
[331917056,1720839044935,-500.0,0.00025205,2]
[331917057,1720839044947,-500.0,0.00025205,2]
[331917058,1720839044958,-500.0,0.00025205,2]
[331917059,1720839044970,-280.85561515,0.00025205,2]
[331917060,1720839044981,-500.0,0.00025205,2]
[331917061,1720839044990,-500.0,0.00025205,2]
[331917062,1720839045000,-500.0,0.00025205,2]
[331917063,1720839045010,-1351.27,0.00025205,2]
[331917064,1720839045043,-509.8493958,0.00025205,2]
[331917065,1720839045053,-550.12,0.00025205,2]
[331917066,1720839045062,-500.0,0.00025205,2]
[331917067,1720839045072,-505.88037243,0.00025205,2]
[331917068,1720839045081,-500.0,0.00025205,2]
[331917069,1720839045091,-328.32022039,0.00025205,2]
[331917070,1720839045100,-500.0,0.00025205,2]
[331917071,1720839045110,-509.10098556,0.00025205,2]
[331917072,1720839045120,-508.57441733,0.00025205,2]
[331917073,1720839045129,-305.75694591,0.00025205,2]
[331917074,1720839045139,-504.17667167,0.00025205,2]
[331917075,1720839045149,-472.93001055,0.00025205,2]
[331917076,1720839045159,-500.0,0.00025205,2]
[331917077,1720839045169,-18599.28,0.00025205,2]
[331917078,1720839045178,-508.93726519,0.00025205,2]
[331917079,1720839045188,-464.04139534,0.00025205,2]
[331917080,1720839045198,-2058.93,0.00025205,2]
[331917081,1720839045208,-500.0,0.00025205,2]
[331917082,1720839045218,-507.22805495,0.00025205,2]
[331917083,1720839045228,-500.0,0.00025205,2]
[331917084,1720839045238,-542.5,0.00025205,2]
[331917085,1720839045247,-500.0,0.00025205,2]
[331917086,1720839045257,-1158.99,0.00025205,2]
[331917087,1720839045266,-644.4,0.00025205,2]
[331917088,1720839045276,-209.94690083,0.00025205,2]
[331917089,1720839045286,-482.72379024,0.00025205,2]
[331917090,1720839045296,-500.0,0.00025205,2]
[331917091,1720839045307,-500.0,0.00025205,2]
[331917092,1720839045318,-894.15,0.00025205,2]
[331917093,1720839045329,-500.0,0.00025205,2]
[331917094,1720839045341,-500.0,0.00025205,2]
[331917095,1720839045351,-502.88199298,0.00025205,2]
[331917096,1720839045361,-157.5276495,0.00025205,2]
[331917097,1720839045371,-189.39290951,0.0002525,2]
[331917098,1720839045380,-173.0,0.00025373,2]
[331917099,1720839045390,-987.61862714,0.00025379,2]
[331917100,1720839045400,-500.0,0.00025399,2]
[331917101,1720839045411,-3289.69400074,0.00025469,3]
[331917102,1720839045421,-500.0,0.00025478,2]
[331917103,1720839045431,-519.87709616,0.00025479,2]
[331917104,1720839045440,-500.0,0.00025479,2]
[331917105,1720839045452,-500.0,0.00025479,2]
[331917106,1720839045461,-208.83589317,0.00025479,2]
[331917107,1720839045471,-470.06643577,0.00025479,2]
[331917108,1720839045481,-509.45008545,0.00025479,2]
[331917109,1720839045491,-500.0,0.00025479,2]
[331917110,1720839045501,-500.0,0.00025479,2]
[331917111,1720839045511,-500.0,0.00025479,2]
[331917112,1720839045520,-500.0,0.00025479,2]
[331917113,1720839045531,-500.0,0.00025479,2]
[331917114,1720839045541,-500.0,0.00025479,2]
[331917115,1720839045551,-510.31884632,0.00025479,2]
[331917116,1720839045560,-500.0,0.00025479,2]
[331917117,1720839045570,-176.53697163,0.00025479,2]
[331917118,1720839045579,-500.0,0.00025479,2]
[331917119,1720839045589,-500.0,0.00025479,2]
[331917120,1720839045598,-500.0,0.00025479,2]
[331917121,1720839045607,-518.32567408,0.00025479,2]
[331917122,1720839045616,-500.0,0.00025479,2]
[331917123,1720839045625,-515.93,0.00025479,2]
[331917124,1720839045635,-518.90242762,0.00025479,2]
[331917125,1720839045646,-155.91498532,0.00025479,2]
[331917126,1720839045656,-513.15017949,0.00025479,2]
[331917127,1720839045665,-500.0,0.00025479,2]
[331917128,1720839045675,-755.94,0.00025479,2]
[331917129,1720839045685,-423.20020528,0.00025479,2]
[331917130,1720839045695,-500.0,0.00025479,2]
[331917131,1720839045706,-541.61,0.00025479,2]
[331917132,1720839045715,-500.0,0.00025479,2]
[331917133,1720839045725,-514.10745298,0.00025479,2]
[331917134,1720839045734,-500.0,0.00025479,2]
[331917135,1720839045744,-500.0,0.00025479,2]
[331917136,1720839045754,-500.0,0.00025479,2]
[331917137,1720839045763,-367.14838889,0.00025479,2]
[331917138,1720839045773,-237.61960165,0.00025479,2]
[331917140,1720839045784,-329.03583086,0.00025479,2]
[331917142,1720839045794,-500.0,0.00025479,2]
[331917143,1720839045803,-1351.27,0.00025479,2]
[331917144,1720839045812,-550.12,0.00025479,2]
[331917145,1720839045821,-500.0,0.00025479,2]
[331917147,1720839045830,-500.0,0.00025479,2]
[331917148,1720839045839,-500.0,0.00025479,2]
[331917149,1720839045849,-18599.28,0.00025479,2]
[331917150,1720839045859,-2058.93,0.00025479,2]
[331917151,1720839045868,-500.0,0.00025479,2]
[331917152,1720839045877,-500.0,0.00025479,2]
[331917153,1720839045887,-508.5256993,0.00025479,2]
[331917154,1720839045897,-1158.99,0.00025479,2]
[331917155,1720839045907,-644.4,0.00025479,2]
[331917156,1720839045917,-512.9365862,0.00025479,2]
[331917157,1720839045927,-500.0,0.00025479,2]
[331917158,1720839045936,-894.15,0.00025479,2]
[331917159,1720839045945,-540.02235693,0.00025479,2]
[331917160,1720839045955,-6579.38800148,0.0002549,3]
[331917161,1720839045968,-500.0,0.00025499,2]
[331917162,1720839045978,-500.0,0.00025499,2]
[331917163,1720839045987,-18076.54915173,0.000255,5]
[331917164,1720839045996,-2000.0,0.000255,2]
[331917165,1720839046007,-84874.70686066,0.000255,2]
[331917166,1720839046017,-500.0,0.00025543,2]
[331917167,1720839046027,-3289.69400074,0.00025545,3]
[331917168,1720839046039,-28074.21308901,0.00025555,2]
[331917169,1720839046050,-500.0,0.00025752,2]
[331917170,1720839046061,-567.1683836,0.00025753,2]
[331917171,1720839046071,-500.0,0.00025753,2]
[331917173,1720839046081,-514.10543152,0.00025753,2]
[331917175,1720839046090,-647.27750143,0.00025753,2]
[331917177,1720839046100,-500.0,0.00025753,2]
[331917179,1720839046110,-399.99213312,0.00025753,2]
[331917181,1720839046120,-500.0,0.00025753,2]
[331917183,1720839046130,-500.0,0.00025753,2]
[331917185,1720839046140,-500.0,0.00025753,2]
[331917187,1720839046150,-500.0,0.00025753,2]
[331917189,1720839046159,-500.0,0.00025753,2]
[331917191,1720839046169,-176.04576437,0.00025753,2]
[331917193,1720839046178,-500.0,0.00025753,2]
[331917195,1720839046188,-515.93,0.00025753,2]
[331917197,1720839046198,-156.29075645,0.00025753,2]
[331917199,1720839046208,-755.94,0.00025753,2]
[331917201,1720839046220,-500.0,0.00025753,2]
[331917203,1720839046229,-541.61,0.00025753,2]
[331917205,1720839046239,-220.8321747,0.00025753,2]
[331917207,1720839046248,-500.0,0.00025753,2]
[331917208,1720839046258,-500.0,0.00025753,2]
[331917209,1720839046268,-184.39520123,0.00025753,2]
[331917210,1720839046277,-500.0,0.00025753,2]
[331917211,1720839046287,-1351.27,0.00025753,2]
[331917212,1720839046297,-550.12,0.00025753,2]
[331917213,1720839046307,-500.0,0.00025753,2]
[331917214,1720839046317,-509.20251714,0.00025753,2]
[331917215,1720839046327,-510.4079031,0.00025753,2]
[331917216,1720839046337,-18599.28,0.00025753,2]
[331917217,1720839046348,-500.0,0.00025753,2]
[331917218,1720839046358,-2058.93,0.00025753,2]
[331917219,1720839046368,-500.0,0.00025753,2]
[331917220,1720839046378,-1158.99,0.00025753,2]
[331917221,1720839046388,-644.4,0.00025753,2]
[331917222,1720839046398,-500.0,0.00025753,2]
[331917223,1720839046408,-894.15,0.00025753,2]
[331917224,1720839046417,-495.80605338,0.00025976,2]
[331917225,1720839046427,-616.53570909,0.0002599,2]
[331917226,1720839046437,-3289.69400074,0.00026009,3]
[331917227,1720839046446,-166.3354984,0.00026019,2]
[331917228,1720839046456,-154.5944506,0.00026025,2]
[331917229,1720839046465,-500.0,0.00026026,2]
[331917230,1720839046475,-177.63942479,0.00026027,2]
[331917231,1720839046485,-500.0,0.00026027,2]
[331917232,1720839046495,-500.0,0.00026027,2]
[331917233,1720839046504,-199.68570588,0.00026027,2]
[331917234,1720839046514,-500.0,0.00026027,2]
[331917235,1720839046524,-500.0,0.00026027,2]
[331917236,1720839046535,-500.0,0.00026027,2]
[331917238,1720839046545,-555.09805269,0.00026027,2]
[331917239,1720839046557,-515.93,0.00026027,2]
[331917240,1720839046567,-755.94,0.00026027,2]
[331917241,1720839046576,-500.0,0.00026027,2]
[331917242,1720839046587,-541.61,0.00026027,2]
[331917243,1720839046597,-508.22045678,0.00026027,2]
[331917244,1720839046606,-500.0,0.00026027,2]
[331917247,1720839046615,-500.0,0.00026027,2]
[331917249,1720839046625,-1351.27,0.00026027,2]
[331917253,1720839046636,-550.12,0.00026027,2]
[331917256,1720839046645,-500.0,0.00026027,2]
[331917258,1720839046654,-18599.28,0.00026027,2]
[331917261,1720839046664,-500.0,0.00026027,2]
[331917264,1720839046674,-2058.93,0.00026027,2]
[331917267,1720839046683,-564.86027751,0.00026027,2]
[331917270,1720839046693,-1158.99,0.00026027,2]
[331917274,1720839046703,-644.4,0.00026027,2]
[331917277,1720839046713,-500.0,0.00026027,2]
[331917280,1720839046722,-894.15,0.00026027,2]
[331917283,1720839046732,-167.25207352,0.00026049,2]
[331917286,1720839046741,-495.80605338,0.00026059,2]
[331917289,1720839046750,-154.5944506,0.00026113,2]
[331917292,1720839046759,-616.53570909,0.0002613,2]
[331917295,1720839046769,-153.89522402,0.00026255,2]
[331917298,1720839046781,-616.53570909,0.00026275,2]
[331917301,1720839046793,-166.3354984,0.00026276,2]
[331917304,1720839046803,-3289.69400074,0.00026291,3]
[331917307,1720839046813,-150.798,0.00026293,2]
[331917310,1720839046823,-500.0,0.000263,2]
[331917313,1720839046833,-500.0,0.00026301,2]
[331917315,1720839046845,-500.0,0.00026301,2]
[331917318,1720839046856,-500.0,0.00026301,2]
[331917320,1720839046867,-500.0,0.00026301,2]
[331917322,1720839046877,-500.0,0.00026301,2]
[331917324,1720839046887,-515.93,0.00026301,2]
[331917326,1720839046896,-755.94,0.00026301,2]
[331917328,1720839046907,-500.0,0.00026301,2]
[331917330,1720839046917,-541.61,0.00026301,2]
[331917332,1720839046927,-500.0,0.00026301,2]
[331917334,1720839046936,-455.40081788,0.00026301,2]
[331917362,1720839047210,-351.91152113,0.00024657,2]
[331917384,1720839072247,1000.0,0.00022381,2]
[331917395,1720839638970,4708.79210104,0.00018899,2]
[331917398,1720839732951,154.69457612,0.00018899,10]
[331917401,1720839771573,882.853894,0.00018899,2]
[331917403,1720839793001,515.94797825,0.00018899,2]
[331917404,1720839803524,585.25217554,0.00018899,2]
[331917405,1720839810866,727.86149056,0.00018899,2]
[331917406,1720839827776,1854.02484961,0.00018899,2]
[331917409,1720839922856,530.20355034,0.00018899,2]
[331917411,1720839985359,3287.83983401,0.00018899,2]
[331917413,1720840034145,-259.55392112,0.00021095,2]
[331917415,1720840067377,180.95427824,0.000189,2]
[331917416,1720840108904,188.29579803,0.00018899,2]
[331917420,1720840119255,313.99685324,0.00018899,2]
[331917422,1720840126871,154.80663163,0.00018899,2]
[331917424,1720840137636,156.29937016,0.00018899,2]
[331917425,1720840141453,415.58957802,0.00018899,2]
[331917426,1720840143747,430.07873612,0.00018899,2]
[331917427,1720840145189,297.67046925,0.00018899,2]
[331917428,1720840148494,189.3788511,0.00018899,2]
[331917429,1720840151185,-197.41006228,0.00019069,2]
[331917430,1720840151207,-154.75283804,0.00019165,2]
[331917431,1720840151229,-155.04376771,0.00019165,2]
[331917432,1720840151250,-154.59033561,0.00020543,2]
[331917433,1720840151272,-300.0,0.00021094,2]
[331917434,1720840151294,-300.0,0.00021094,2]
[331917435,1720840151315,-950.00727179,0.00021095,2]
[331917436,1720840151337,-154.8538773,0.00021095,2]
[331917437,1720840151362,-922.47579135,0.00021095,2]
[331917438,1720840151383,-181.597648,0.00021096,2]
[331917439,1720840151404,-306.535829,0.00021096,2]
[331917440,1720840151428,-4943.7624518,0.00021679,2]
[331917441,1720840151449,-403.69228639,0.00021917,2]
[331917442,1720840151475,-262.80744826,0.00021917,2]
[331917443,1720840151497,-298.44803599,0.00021917,2]
[331917444,1720840151519,-154.57491897,0.00021917,2]
[331917445,1720840151541,-247.7705126,0.00021918,2]
[331917446,1720840151562,-271.091281,0.00022322,2]
[331917447,1720840151582,-869.07537599,0.00022381,2]
[331917448,1720840165120,155.30828059,0.0002243,2]
[331917477,1720840234371,2604.79614615,0.00022381,2]
[331917497,1720840241232,-11717.39727874,0.00022579,2]
[331917498,1720840241242,-180.95427824,0.000239,2]
[331917499,1720840241253,-154.57491897,0.00024481,2]
[331917500,1720840241264,-197.52372546,0.00024557,2]
[331917502,1720840241274,-873.42067764,0.00024557,2]
[331917505,1720840241285,-2631.75520059,0.00024647,3]
[331917507,1720840241295,-500.0,0.00024657,2]
[331917509,1720840241306,-500.0,0.00024657,2]
[331917510,1720840241317,-536.81733521,0.00024657,2]
[331917511,1720840241328,-507.80736778,0.00024657,2]
[331917512,1720840241339,-505.93110989,0.00024657,2]
[331917515,1720840241350,-500.0,0.00024657,2]
[331917517,1720840241361,-500.0,0.00024657,2]
[331917519,1720840241372,-500.0,0.00024657,2]
[331917520,1720840241382,-506.78342419,0.00024657,2]
[331917521,1720840241393,-495.27975233,0.00024657,2]
[331917522,1720840241404,-504.16344149,0.00024657,2]
[331917523,1720840241414,-500.0,0.00024657,2]
[331917524,1720840241425,-500.0,0.00024657,2]
[331917525,1720840241436,-500.0,0.00024657,2]
[331917526,1720840241447,-506.82709353,0.00024657,2]
[331917527,1720840241460,-500.0,0.00024657,2]
[331917528,1720840241471,-500.0,0.00024657,2]
[331917529,1720840241482,-500.0,0.00024657,2]
[331917530,1720840241495,-500.0,0.00024657,2]
[331917531,1720840241505,-500.0,0.00024657,2]
[331917532,1720840241516,-500.0,0.00024657,2]
[331917533,1720840241680,-503.92372107,0.00024657,2]
[331917534,1720840241695,-518.90242762,0.00024657,2]
[331917535,1720840241705,-537.70544936,0.00024657,2]
[331917536,1720840241715,-502.10071444,0.00024657,2]
[331917537,1720840241725,-500.0,0.00024657,2]
[331917538,1720840241735,-500.0,0.00024657,2]
[331917539,1720840241745,-500.0,0.00024657,2]
[331917540,1720840241755,-508.91641014,0.00024657,2]
[331917541,1720840241764,-500.0,0.00024657,2]
[331917542,1720840241774,-500.0,0.00024657,2]
[331917543,1720840241785,-500.0,0.00024657,2]
[331917544,1720840241795,-500.0,0.00024657,2]
[331917545,1720840241806,-661.45,0.00024657,2]
[331917546,1720840241815,-500.0,0.00024657,2]
[331917547,1720840241825,-500.0,0.00024657,2]
[331917548,1720840241835,-500.0,0.00024657,2]
[331917549,1720840241845,-500.0,0.00024657,2]
[331917550,1720840241854,-500.0,0.00024657,2]
[331917551,1720840241863,-500.0,0.00024657,2]
[331917552,1720840241873,-509.06939582,0.00024657,2]
[331917553,1720840241882,-500.0,0.00024657,2]
[331917554,1720840241893,-500.0,0.00024657,2]
[331917555,1720840241902,-500.0,0.00024657,2]
[331917556,1720840241914,-500.0,0.00024657,2]
[331917557,1720840241923,-504.12984995,0.00024657,2]
[331917558,1720840241934,-500.0,0.00024657,2]
[331917559,1720840241943,-500.0,0.00024657,2]
[331917560,1720840241953,-500.0,0.00024657,2]
[331917561,1720840241963,-500.0,0.00024657,2]
[331917562,1720840241972,-500.0,0.00024657,2]
[331917563,1720840241982,-500.0,0.00024657,2]
[331917564,1720840241993,-509.46953381,0.00024657,2]
[331917565,1720840242002,-500.0,0.00024657,2]
[331917566,1720840242011,-500.0,0.00024657,2]
[331917567,1720840242021,-500.0,0.00024657,2]
[331917568,1720840242030,-500.2480666,0.00024657,2]
[331917569,1720840242040,-500.0,0.00024657,2]
[331917570,1720840242049,-500.0,0.00024657,2]
[331917571,1720840242059,-500.0,0.00024657,2]
[331917572,1720840242068,-503.81761576,0.00024657,2]
[331917573,1720840242078,-502.91854836,0.00024657,2]
[331917574,1720840242087,-522.25059948,0.00024657,2]
[331917575,1720840242096,-500.0,0.00024657,2]
[331917576,1720840242105,-510.08462988,0.00024657,2]
[331917577,1720840242115,-508.57441733,0.00024657,2]
[331917578,1720840242124,-500.0,0.00024657,2]
[331917579,1720840242133,-544.18133022,0.00024657,2]
[331917580,1720840242155,-500.0,0.00024657,2]
[331917581,1720840242165,-394.17672297,0.00024657,2]
[331917582,1720840242175,-500.0,0.00024657,2]
[331917583,1720840242184,-505.35376622,0.00024657,2]
[331917584,1720840242193,-500.0,0.00024657,2]
[331917585,1720840242203,-505.88037243,0.00024657,2]
[331917586,1720840242212,-328.32022039,0.00024657,2]
[331917587,1720840242222,-500.0,0.00024657,2]
[331917588,1720840242231,-1062.41,0.00024657,2]
[331917589,1720840242241,-500.0,0.00024657,2]
[331917590,1720840242250,-500.0,0.00024657,2]
[331917591,1720840242260,-500.0,0.00024657,2]
[331917592,1720840242269,-576.49751016,0.00024657,2]
[331917593,1720840242277,-500.0,0.00024657,2]
[331917594,1720840242287,-507.22805495,0.00024657,2]
[331917595,1720840242296,-590.7,0.00024657,2]
[331917596,1720840242304,-500.0,0.00024657,2]
[331917597,1720840242313,-553.0827998,0.00024657,2]
[331917598,1720840242322,-564.82384085,0.00024657,2]
[331917599,1720840242331,-500.0,0.00024657,2]
[331917600,1720840242341,-500.0,0.00024657,2]
[331917601,1720840242350,-500.0,0.00024657,2]
[331917602,1720840242359,-500.0,0.00024657,2]
[331917603,1720840242369,-500.0,0.00024657,2]
[331917604,1720840242378,-504.28519357,0.00024657,2]
[331917605,1720840242389,-500.0,0.00024657,2]
[331917606,1720840242400,-500.0,0.00024657,2]
[331917607,1720840242409,-500.0,0.00024657,2]
[331917608,1720840242419,-500.0,0.00024657,2]
[331917609,1720840242429,-505.73435651,0.00024657,2]
[331917610,1720840242438,-500.0,0.00024657,2]
[331917611,1720840242447,-500.0,0.00024657,2]
[331917612,1720840242460,-500.0,0.00024657,2]
[331917613,1720840242469,-500.0,0.00024657,2]
[331917614,1720840242478,-544.56384091,0.00024657,2]
[331917615,1720840242488,-500.0,0.00024657,2]
[331917616,1720840242498,-624.10402067,0.00024657,2]
[331917617,1720840242507,-500.0,0.00024657,2]
[331917618,1720840242516,-503.14681675,0.00024657,2]
[331917619,1720840242525,-500.0,0.00024657,2]
[331917620,1720840242535,-500.0,0.00024657,2]
[331917621,1720840242544,-506.45153383,0.00024657,2]
[331917622,1720840242554,-505.40859699,0.00024657,2]
[331917623,1720840242563,-500.0,0.00024657,2]
[331917624,1720840242572,-500.0,0.00024657,2]
[331917625,1720840242581,-500.0,0.00024657,2]
[331917626,1720840242590,-337.14,0.00024657,2]
[331917627,1720840242600,-500.0,0.00024657,2]
[331917628,1720840242609,-500.0,0.00024657,2]
[331917629,1720840242619,-325.09363436,0.00024657,2]